bitfinex-derivatives/quotes_BTCF0:USTF0_20260106
["timestamp","ask_amount","ask_price","bid_price","bid_amount"]
[1767669063986,0.010663,93781.0,93763.0,0.09519833]
[1767669064785,0.010663,93784.0,93763.0,0.09519833]
[1767669067287,0.010663,93782.0,93763.0,0.09519833]
[1767669070290,0.03375103,93785.0,93765.0,0.09519833]
[1767669070492,0.010663,93783.0,93765.0,0.09519833]
[1767669070694,0.010663,93781.0,93765.0,0.07819833]
[1767669074098,0.010663,93779.0,93765.0,0.07819833]
[1767669074501,0.18607459,93786.0,93762.0,0.09068]
[1767669074502,0.010664,93777.0,93762.0,0.09068]
[1767669075094,0.010664,93777.0,93760.0,0.09829722]
[1767669075396,0.010664,93777.0,93759.0,0.18587833]
[1767669076193,0.010664,93777.0,93760.0,0.09829722]
[1767669076593,0.12138525,93780.0,93760.0,0.09829722]
[1767669076994,0.12138525,93780.0,93759.0,0.18587833]
[1767669076995,0.02308803,93779.0,93759.0,0.18587833]
[1767669077398,0.010664,93771.0,93759.0,0.18587833]
[1767669077697,0.010664,93771.0,93759.0,0.09068]
[1767669077890,0.010664,93771.0,93753.0,0.09519833]
[1767669077891,0.010665,93767.0,93753.0,0.09519833]
[1767669078093,0.010665,93767.0,93751.0,0.09068]
[1767669078294,0.010665,93767.0,93751.0,0.08268]
[1767669079399,0.010665,93767.0,93751.0,0.17787833]
[1767669079994,0.010665,93765.0,93751.0,0.17787833]
[1767669083305,0.010665,93768.0,93751.0,0.17787833]
[1767669085008,0.010665,93768.0,93752.0,0.09519833]
[1767669086101,0.010665,93768.0,93752.0,0.08519833]
[1767669086906,0.010665,93768.0,93749.0,0.00213337]
[1767669086907,0.010665,93766.0,93749.0,0.00213337]
[1767669087105,0.010665,93766.0,93750.0,0.09829722]
[1767669088110,0.010665,93766.0,93750.0,0.19349555]
[1767669088506,0.20435581,93770.0,93750.0,0.19349555]
[1767669088706,0.10896122,93770.0,93751.0,0.09519833]
[1767669089208,0.010665,93768.0,93751.0,0.09519833]
[1767669091910,0.010665,93769.0,93751.0,0.09519833]
[1767669093711,0.010665,93769.0,93751.0,0.08219833]
[1767669093908,0.09829722,93770.0,93751.0,0.08219833]
[1767669094206,0.09068,93778.0,93760.0,0.09829722]
[1767669094410,0.101343,93780.0,93768.0,0.09829722]
[1767669094613,0.101343,93780.0,93759.0,0.010666]
[1767669095710,0.101343,93780.0,93760.0,0.09380464]
[1767669097310,0.11279297,93780.0,93760.0,0.09380464]
[1767669097509,0.02211297,93778.0,93760.0,0.09380464]
[1767669098114,0.010664,93776.0,93760.0,0.09380464]
[1767669101518,0.010664,93776.0,93760.0,0.08980464]
[1767669104721,0.010664,93774.0,93756.0,0.09068]
[1767669105224,0.010664,93774.0,93756.0,0.18448464]
[1767669105826,0.010664,93774.0,93757.0,0.10447064]
[1767669106310,0.010664,93774.0,93757.0,0.09380464]
[1767669108020,0.010664,93772.0,93757.0,0.09380464]
[1767669109124,0.010664,93772.0,93757.0,0.09080464]
[1767669109922,0.010664,93776.0,93757.0,0.09080464]
[1767669112625,0.010664,93774.0,93757.0,0.09080464]
[1767669116826,0.010664,93774.0,93757.0,0.08780464]
[1767669117229,0.010664,93772.0,93757.0,0.08780464]
[1767669119027,0.010664,93776.0,93757.0,0.08780464]
[1767669119429,0.010664,93774.0,93757.0,0.08780464]
[1767669120833,0.010664,93777.0,93757.0,0.09847064]
[1767669121026,0.11954377,93779.0,93757.0,0.09847064]
[1767669121225,0.010664,93778.0,93760.0,0.09627874]
[1767669121625,0.010664,93778.0,93760.0,0.10694374]
[1767669122334,0.09068,93780.0,93766.0,0.09627874]
[1767669124628,0.09068,93780.0,93766.0,0.08527874]
[1767669126436,0.09068,93780.0,93756.0,0.101346]
[1767669126637,0.09068,93780.0,93757.0,0.09627874]
[1767669126836,0.1102315,93780.0,93757.0,0.09627874]
[1767669127441,0.010664,93778.0,93758.0,0.010666]
[1767669127640,0.09068,93780.0,93761.0,0.09627874]
[1767669127833,0.010663,93779.0,93761.0,0.09627874]
[1767669128843,0.010664,93777.0,93761.0,0.09627874]
[1767669130049,0.09068,93780.0,93761.0,0.09627874]
[1767669130650,0.010663,93779.0,93761.0,0.09627874]
[1767669130852,0.010664,93777.0,93761.0,0.09627874]
[1767669132250,0.010664,93777.0,93761.0,0.08327874]
[1767669135351,0.09068,93780.0,93761.0,0.08327874]
[1767669135953,0.010664,93778.0,93761.0,0.08327874]
[1767669136151,0.09068,93780.0,93761.0,0.08327874]
[1767669137552,0.09068,93780.0,93762.0,0.10694374]
[1767669139953,0.09068,93780.0,93762.0,0.10194374]
[1767669140654,0.09068,93780.0,93764.0,0.010665]
[1767669140848,0.09068,93780.0,93764.0,0.10694374]
[1767669141755,0.09068,93780.0,93764.0,0.09627874]
[1767669142559,0.010663,93785.0,93764.0,0.09627874]
[1767669142749,0.09068,93784.0,93764.0,0.09627874]
[1767669143862,0.09722338,93793.0,93756.0,0.09068]
[1767669143863,0.010662,93792.0,93774.0,0.09627874]
[1767669144160,0.10246788,93794.0,93774.0,0.09627874]
[1767669144354,0.09068,93794.0,93774.0,0.09627874]
[1767669144946,0.010662,93793.0,93774.0,0.09627874]
[1767669145355,0.10214777,93794.0,93768.0,0.09068]
[1767669145356,0.11677488,93792.0,93769.0,0.09627874]
[1767669145553,0.0195515,93791.0,93769.0,0.09627874]
[1767669146452,0.010662,93789.0,93769.0,0.10694274]
[1767669147749,0.010662,93789.0,93769.0,0.09894274]
[1767669147950,0.0195515,93787.0,93769.0,0.010664]
[1767669148445,0.010663,93784.0,93768.0,0.09068]
[1767669148651,0.0195515,93785.0,93768.0,0.09068]
[1767669148854,0.0195515,93785.0,93768.0,0.101345]
[1767669149760,0.0195515,93785.0,93768.0,0.09068]
[1767669150761,0.09722338,93786.0,93768.0,0.09068]
[1767669151757,0.09722338,93786.0,93764.0,0.10694374]
[1767669151758,0.010663,93784.0,93764.0,0.10694374]
[1767669151962,0.010663,93784.0,93767.0,0.09068]
[1767669152859,0.010663,93780.0,93761.0,0.010665]
[1767669153063,0.010663,93780.0,93762.0,0.09068]
[1767669153266,0.09385345,93781.0,93762.0,0.09068]
[1767669153562,0.09385345,93781.0,93763.0,0.010665]
[1767669153763,0.010663,93783.0,93763.0,0.010665]
[1767669153963,0.010663,93783.0,93763.0,0.10817086]
[1767669154664,0.010663,93783.0,93770.0,0.09833427]
[1767669154964,0.010663,93783.0,93770.0,0.00034427]
[1767669155358,0.01690694,93786.0,93770.0,0.00034427]
[1767669155564,0.010663,93783.0,93770.0,0.09833427]
[1767669156264,0.010663,93783.0,93763.0,0.10518013]
[1767669156964,0.010663,93783.0,93766.0,0.010665]
[1767669158055,0.02756994,93786.0,93763.0,0.00512013]
[1767669158261,0.09385345,93785.0,93766.0,0.010665]
[1767669158862,0.010663,93784.0,93766.0,0.010665]
[1767669159064,0.010663,93784.0,93766.0,0.008715]
[1767669159450,0.010663,93784.0,93763.0,0.01578513]
[1767669161166,0.11076039,93778.0,93762.0,0.09068]
[1767669161352,0.09385345,93775.0,93752.0,0.06550517]
[1767669161556,0.09068,93784.0,93753.0,0.09068]
[1767669161557,0.010665,93768.0,93753.0,0.09068]
[1767669161857,0.010665,93768.0,93752.0,0.09068]
[1767669161858,0.10451845,93768.0,93752.0,0.09068]
[1767669162562,0.09385345,93768.0,93752.0,0.09068]
[1767669163166,0.09385345,93768.0,93752.0,0.05368]
[1767669168074,0.11076039,93768.0,93752.0,0.05368]
[1767669168264,0.09385345,93766.0,93752.0,0.05368]
[1767669168871,0.11076039,93766.0,93748.0,0.010667]
[1767669169077,0.09385345,93761.0,93748.0,0.09068]
[1767669170879,0.09385345,93761.0,93748.0,0.05068]
[1767669173183,0.09385345,93761.0,93742.0,0.010668]
[1767669173378,0.09385345,93761.0,93743.0,0.09068]
[1767669173874,0.010666,93760.0,93743.0,0.09068]
[1767669174077,0.010666,93756.0,93743.0,0.09068]
[1767669174474,0.10451945,93759.0,93743.0,0.09068]
[1767669175081,0.09385345,93759.0,93743.0,0.09068]
[1767669176580,0.10193255,93765.0,93749.0,0.09833427]
[1767669177778,0.10193255,93763.0,93749.0,0.09833427]
[1767669178779,0.10193255,93763.0,93749.0,0.08433427]
[1767669185480,0.09126755,93763.0,93746.0,0.101347]
[1767669185783,0.09126755,93763.0,93748.0,0.010667]
[1767669185983,0.09126755,93763.0,93750.0,0.09833427]
[1767669186584,0.09126755,93763.0,93750.0,0.09333427]
[1767669193793,0.09126755,93763.0,93747.0,0.010667]
[1767669193993,0.09126755,93763.0,93750.0,0.09833427]
[1767669199800,0.09126755,93763.0,93746.0,0.09068]
[1767669199985,0.09126755,93763.0,93750.0,0.09833427]
[1767669200190,0.09126755,93763.0,93746.0,0.09068]
[1767669201797,0.09126755,93763.0,93746.0,0.07668]
[1767669202297,0.09126755,93763.0,93746.0,0.087347]
[1767669203593,0.09126755,93763.0,93746.0,0.07668]
[1767669205900,0.09126755,93763.0,93747.0,0.010667]
[1767669206096,0.09126755,93763.0,93750.0,0.09833427]
[1767669206498,0.10196646,93769.0,93751.0,0.010667]
[1767669206693,0.10196646,93769.0,93750.0,0.09833427]
[1767669207805,0.10196646,93769.0,93748.0,0.010667]
[1767669207806,0.09130146,93774.0,93754.0,0.010666]
[1767669208106,0.09130146,93774.0,93759.0,0.09833427]
[1767669208506,0.09130146,93774.0,93760.0,0.09833427]
[1767669208805,0.09130146,93778.0,93760.0,0.09833427]
[1767669209506,0.09130146,93778.0,93760.0,0.08733427]
[1767669210706,0.09130146,93776.0,93760.0,0.08733427]
[1767669212608,0.09431158,93798.0,93766.0,0.09833427]
[1767669212804,0.09431158,93798.0,93788.0,0.09833427]
[1767669213002,0.01948516,93804.0,93780.0,0.09833427]
[1767669213003,0.01948516,93808.0,93794.0,0.09833427]
[1767669213197,0.01948516,93808.0,93792.0,0.010662]
[1767669213198,0.002132,93809.0,93798.0,0.09833427]
[1767669214206,0.002132,93809.0,93792.0,0.010662]
[1767669214706,0.02161716,93809.0,93792.0,0.010662]
[1767669214907,0.09639058,93808.0,93792.0,0.010662]
[1767669215210,0.11587574,93808.0,93792.0,0.010662]
[1767669217310,0.11587574,93808.0,93792.0,0.007662]
[1767669217506,0.11587574,93808.0,93794.0,0.010662]
[1767669219313,0.11587574,93808.0,93785.0,0.09479607]
[1767669219513,0.09639058,93806.0,93785.0,0.09479607]
[1767669219714,0.11587574,93806.0,93791.0,0.010662]
[1767669220011,0.11587574,93805.0,93791.0,0.010662]
[1767669221506,0.002132,93809.0,93770.0,0.09479607]
[1767669221507,0.11587574,93794.0,93770.0,0.09479607]
[1767669221707,0.11587574,93794.0,93783.0,0.010663]
[1767669222112,0.09639058,93794.0,93783.0,0.010663]
[1767669224515,0.09639058,93794.0,93785.0,0.010663]
[1767669224717,0.09639058,93794.0,93785.0,0.101343]
[1767669224906,0.09639058,93794.0,93785.0,0.082343]
[1767669225715,0.01948516,93797.0,93785.0,0.082343]
[1767669226311,0.01948516,93797.0,93785.0,0.093006]
[1767669226512,0.01948516,93797.0,93788.0,0.010662]
[1767669229616,0.09639058,93800.0,93788.0,0.010662]
[1767669229820,0.01948516,93799.0,93788.0,0.010662]
[1767669230318,0.01948516,93798.0,93788.0,0.010662]
[1767669232525,0.01948516,93806.0,93785.0,0.17713907]
[1767669232822,0.01948516,93806.0,93785.0,0.17313907]
[1767669233021,0.01948516,93806.0,93789.0,0.010662]
[1767669233616,0.09852258,93809.0,93789.0,0.010662]
[1767669233829,0.11800774,93809.0,93789.0,0.10545807]
[1767669234121,0.01948516,93807.0,93789.0,0.010662]
[1767669234319,0.01948516,93805.0,93789.0,0.010662]
[1767669235214,0.11288121,93805.0,93785.0,0.16913318]
[1767669235611,0.11288121,93805.0,93793.0,0.010662]
[1767669237824,0.02169616,93804.0,93793.0,0.010662]
[1767669238124,0.09339605,93805.0,93793.0,0.010662]
[1767669238822,0.02169616,93808.0,93793.0,0.010662]
[1767669239222,0.02169616,93807.0,93793.0,0.010662]
[1767669240419,0.02169616,93806.0,93793.0,0.010662]
[1767669240922,0.01965374,93804.0,93793.0,0.010662]
[1767669241122,0.01965374,93804.0,93793.0,0.007662]
[1767669242216,0.09935348,93805.0,93793.0,0.007662]
[1767669242519,0.002132,93809.0,93796.0,0.010661]
[1767669242716,0.09068,93810.0,93789.0,0.09573346]
[1767669242920,0.09068,93819.0,93801.0,0.010661]
[1767669243122,0.01965374,93818.0,93801.0,0.010661]
[1767669243322,0.01965374,93817.0,93801.0,0.010661]
[1767669243522,0.11900722,93817.0,93801.0,0.010661]
[1767669243824,0.01965374,93816.0,93801.0,0.010661]
[1767669244829,0.01965374,93816.0,93803.0,0.010661]
[1767669245015,0.010658,93827.0,93806.0,0.01066]
[1767669245016,0.01965374,93826.0,93806.0,0.01066]
[1767669245223,0.01965374,93824.0,93807.0,0.09068]
[1767669245522,0.01965374,93822.0,93807.0,0.09068]
[1767669245718,0.01965374,93821.0,93807.0,0.09068]
[1767669246622,0.01965374,93824.0,93807.0,0.09068]
[1767669248621,0.11900722,93824.0,93807.0,0.09068]
[1767669248826,0.01965374,93823.0,93807.0,0.08168]
[1767669253824,0.11900722,93823.0,93807.0,0.08168]
[1767669254025,0.01965374,93822.0,93807.0,0.08168]
[1767669256534,0.01965374,93822.0,93807.0,0.06668]
[1767669258429,0.01965374,93825.0,93807.0,0.06668]
[1767669258828,0.01965374,93825.0,93808.0,0.01066]
[1767669261741,0.11900722,93828.0,93810.0,0.01066]
[1767669262332,0.11900722,93828.0,93807.0,0.07734]
[1767669262830,0.01965374,93827.0,93807.0,0.07734]
[1767669264440,0.010658,93826.0,93807.0,0.05568]
[1767669265142,0.03031174,93826.0,93807.0,0.05568]
[1767669266638,0.01965374,93822.0,93807.0,0.05568]
[1767669266840,0.09935348,93821.0,93807.0,0.05568]
[1767669267028,0.01965374,93824.0,93807.0,0.05568]
[1767669267444,0.01965374,93824.0,93808.0,0.01066]
[1767669268130,0.09935348,93826.0,93808.0,0.01066]
[1767669268328,0.09935348,93826.0,93807.0,0.05568]
[1767669268329,0.11900722,93826.0,93807.0,0.05568]
[1767669269838,0.01965374,93825.0,93807.0,0.05568]
[1767669270044,0.11900722,93825.0,93807.0,0.05568]
[1767669272141,0.11900722,93825.0,93807.0,0.04568]
[1767669274550,0.11900722,93825.0,93810.0,0.09823922]
[1767669275353,0.12966522,93825.0,93810.0,0.09823922]
[1767669275849,0.01899595,93824.0,93810.0,0.09823922]
[1767669277370,0.11342552,93824.0,93810.0,0.09823922]
[1767669279161,0.01899595,93823.0,93810.0,0.09823922]
[1767669279565,0.01899595,93823.0,93810.0,0.18887922]
[1767669279764,0.01899595,93823.0,93810.0,0.09064]
[1767669279972,0.01899595,93823.0,93810.0,0.18887922]
[1767669282576,0.09442957,93824.0,93810.0,0.18887922]
[1767669282876,0.09442957,93824.0,93811.0,0.01066]
[1767669283473,0.09442957,93824.0,93810.0,0.18887922]
[1767669284171,0.01899595,93826.0,93810.0,0.19953922]
[1767669284362,0.01899595,93829.0,93810.0,0.19953922]
[1767669284866,0.01899595,93828.0,93810.0,0.19953922]
[1767669287472,0.01899595,93828.0,93810.0,0.16453921]
[1767669289373,0.09442957,93829.0,93810.0,0.16453921]
[1767669289774,0.11342552,93829.0,93810.0,0.16453921]
[1767669291377,0.11342552,93829.0,93812.0,0.01066]
[1767669292876,0.11342552,93829.0,93810.0,0.15387921]
[1767669295179,0.11342552,93829.0,93810.0,0.13487921]
[1767669296578,0.11342552,93829.0,93810.0,0.03663999]
[1767669296774,0.0190202,93828.0,93810.0,0.13487921]
[1767669296975,0.0296782,93828.0,93810.0,0.09823922]
[1767669297174,0.0190202,93828.0,93810.0,0.18887922]
[1767669297579,0.09442957,93829.0,93811.0,0.01066]
[1767669297769,0.0190202,93828.0,93810.0,0.18887922]
[1767669299883,0.0190202,93828.0,93812.0,0.01066]
[1767669300086,0.09442957,93829.0,93812.0,0.01066]
[1767669300383,0.09442957,93829.0,93810.0,0.18887922]
[1767669300582,0.11344977,93829.0,93810.0,0.18887922]
[1767669300777,0.0190202,93828.0,93810.0,0.18887922]
[1767669300984,0.1127515,93827.0,93810.0,0.18887922]
[1767669301184,0.02999063,93826.0,93810.0,0.18887922]
[1767669301377,0.01933263,93826.0,93810.0,0.18887922]
[1767669301780,0.01933263,93823.0,93810.0,0.18887922]
[1767669301975,0.01933263,93823.0,93801.0,0.05904454]
[1767669301976,0.01933263,93817.0,93808.0,0.09064]
[1767669302175,0.01933263,93816.0,93808.0,0.09064]
[1767669302787,0.09341887,93817.0,93808.0,0.09064]
[1767669302993,0.01933263,93821.0,93808.0,0.07264]
[1767669304586,0.1127515,93823.0,93808.0,0.07264]
[1767669304779,0.01933263,93822.0,93808.0,0.07264]
[1767669305185,0.01933263,93821.0,93808.0,0.07264]
[1767669305590,0.01933263,93819.0,93808.0,0.07264]
[1767669305987,0.01933263,93819.0,93800.0,0.15644665]
[1767669306288,0.01933263,93819.0,93801.0,0.09064]
[1767669306682,0.09341887,93820.0,93801.0,0.09064]
[1767669306878,0.09341887,93820.0,93801.0,0.18795888]
[1767669307492,0.01933263,93818.0,93802.0,0.09064]
[1767669307790,0.010659,93817.0,93802.0,0.09064]
[1767669308191,0.01933263,93818.0,93802.0,0.09064]
[1767669309083,0.09341887,93819.0,93802.0,0.09064]
[1767669309282,0.010658,93823.0,93802.0,0.18795888]
[1767669309483,0.01933263,93822.0,93802.0,0.18795888]
[1767669309888,0.010659,93821.0,93802.0,0.18795888]
[1767669310691,0.010659,93821.0,93802.0,0.13695888]
[1767669312205,0.02999163,93821.0,93802.0,0.13695888]
[1767669313594,0.01933263,93821.0,93802.0,0.14761988]
[1767669318199,0.01933263,93821.0,93804.0,0.01066]
[1767669318491,0.01933263,93821.0,93802.0,0.17725888]
[1767669318698,0.01933263,93821.0,93804.0,0.01066]
[1767669320487,0.01933263,93821.0,93802.0,0.17725888]
[1767669320801,0.1234095,93825.0,93803.0,0.09731888]
[1767669320994,0.1234095,93825.0,93806.0,0.01066]
[1767669321202,0.010658,93823.0,93803.0,0.10797988]
[1767669321404,0.010658,93823.0,93810.0,0.09823922]
[1767669321895,0.1127515,93825.0,93810.0,0.09823922]
[1767669322402,0.02999063,93824.0,93810.0,0.09823922]
[1767669324497,0.02999063,93824.0,93807.0,0.01066]
[1767669326104,0.02999063,93824.0,93803.0,0.09497888]
[1767669326308,0.02999063,93824.0,93807.0,0.01066]
[1767669326612,0.01933263,93824.0,93803.0,0.09497888]
[1767669326805,0.09341887,93825.0,93810.0,0.09823922]
[1767669333705,0.09341887,93825.0,93811.0,0.01066]
[1767669333902,0.11245609,93838.0,93816.0,0.09713638]
[1767669334107,0.20309609,93838.0,93822.0,0.010658]
[1767669334906,0.20309609,93838.0,93820.0,0.09823922]
[1767669335909,0.03001714,93837.0,93820.0,0.09823922]
[1767669336503,0.01936014,93837.0,93819.0,0.010659]
[1767669336907,0.01936014,93837.0,93821.0,0.010659]
[1767669337100,0.18373595,93838.0,93823.0,0.010658]
[1767669337305,0.18373595,93838.0,93820.0,0.010659]
[1767669338409,0.20309609,93838.0,93820.0,0.010659]
[1767669341406,0.20309609,93838.0,93816.0,0.09479538]
[1767669341607,0.20309609,93838.0,93822.0,0.010658]
[1767669342309,0.09064,93838.0,93822.0,0.010658]
[1767669342804,0.09309595,93843.0,93822.0,0.010658]
[1767669343008,0.010656,93844.0,93822.0,0.010658]
[1767669343507,0.01936014,93843.0,93822.0,0.010658]
[1767669345513,0.01936014,93843.0,93822.0,0.10779438]
[1767669346308,0.09309595,93850.0,93832.0,0.010657]
[1767669346512,0.010655,93856.0,93822.0,0.09064]
[1767669346513,0.11000014,93855.0,93835.0,0.010657]
[1767669346808,0.01936014,93852.0,93834.0,0.010657]
[1767669347006,0.01936014,93852.0,93836.0,0.010657]
[1767669347211,0.010654,93865.0,93840.0,0.010656]
[1767669347411,0.010654,93865.0,93839.0,0.09713638]
[1767669347604,0.010654,93865.0,93838.0,0.09064]
[1767669347605,0.01936014,93865.0,93842.0,0.10779238]
[1767669348114,0.01936014,93863.0,93842.0,0.10779238]
[1767669349114,0.01936014,93863.0,93842.0,0.09713638]
[1767669350312,0.01936014,93863.0,93842.0,0.10779238]
[1767669351208,0.09309595,93864.0,93842.0,0.09713638]
[1767669351808,0.11245609,93864.0,93842.0,0.09713638]
[1767669352217,0.09309595,93864.0,93842.0,0.09713638]
[1767669352416,0.11245609,93864.0,93842.0,0.09713638]
[1767669352912,0.01936014,93867.0,93850.0,0.010655]
[1767669353111,0.00213064,93869.0,93849.0,0.09713638]
[1767669353315,0.00213064,93869.0,93850.0,0.09713638]
[1767669353908,0.00213064,93869.0,93851.0,0.010655]
[1767669354211,0.02149078,93869.0,93851.0,0.010655]
[1767669355217,0.0174303,93868.0,93851.0,0.010655]
[1767669355714,0.09281386,93869.0,93850.0,0.09713638]
[1767669356320,0.09281386,93869.0,93854.0,0.010655]
[1767669356616,0.00213064,93869.0,93857.0,0.010654]
[1767669356812,0.00213064,93869.0,93850.0,0.09479038]
[1767669357215,0.00213064,93869.0,93849.0,0.09064]
[1767669357717,0.00213064,93869.0,93858.0,0.010654]
[1767669358608,0.00213064,93869.0,93855.0,0.010655]
[1767669359212,0.0174303,93878.0,93858.0,0.09175038]
[1767669359417,0.0174303,93869.0,93854.0,0.010655]
[1767669359624,0.0174303,93867.0,93854.0,0.010655]
[1767669359814,0.09068322,93868.0,93854.0,0.010655]
[1767669360418,0.0174303,93870.0,93854.0,0.010655]
[1767669360626,0.0174303,93873.0,93858.0,0.010654]
[1767669361116,0.11580201,93871.0,93858.0,0.010654]
[1767669361419,0.01668515,93870.0,93850.0,0.09175038]
[1767669361611,0.01668515,93870.0,93854.0,0.010655]
[1767669361804,0.01668515,93869.0,93854.0,0.010655]
[1767669362010,0.01668515,93868.0,93854.0,0.010655]
[1767669364921,0.01668515,93868.0,93849.0,0.087295]
[1767669365220,0.01668515,93868.0,93854.0,0.010655]
[1767669366321,0.01668515,93873.0,93855.0,0.010655]
[1767669366518,0.01668515,93872.0,93857.0,0.010654]
[1767669367515,0.01668515,93869.0,93854.0,0.010655]
[1767669368623,0.01668515,93860.0,93849.0,0.087295]
[1767669368921,0.01668515,93860.0,93849.0,0.09795]
[1767669369121,0.09911686,93861.0,93849.0,0.09795]
[1767669370512,0.09911686,93854.0,93841.0,0.02856789]
[1767669370722,0.01668515,93852.0,93840.0,0.010656]
[1767669371023,0.09911686,93853.0,93840.0,0.010656]
[1767669372424,0.01668515,93852.0,93840.0,0.010656]
[1767669372625,0.01668515,93852.0,93839.0,0.09273132]
[1767669372820,0.09911686,93853.0,93839.0,0.09273132]
[1767669373323,0.09911686,93853.0,93840.0,0.010656]
[1767669374624,0.09911686,93853.0,93839.0,0.09273132]
[1767669374819,0.09911686,93853.0,93839.0,0.10338732]
[1767669375417,0.01668515,93846.0,93839.0,5.232e-05]
[1767669375620,0.01668515,93846.0,93832.0,0.03809052]
[1767669375621,0.01668515,93845.0,93833.0,0.0906]
[1767669376025,0.09911686,93846.0,93833.0,0.0906]
[1767669376625,0.09911686,93846.0,93834.0,0.010657]
[1767669379020,0.09911686,93846.0,93833.0,0.0906]
[1767669379328,0.02734015,93853.0,93827.0,0.03809052]
[1767669379329,0.09911686,93844.0,93827.0,0.03809052]
[1767669379516,0.09911686,93842.0,93824.0,0.12869052]
[1767669380028,0.01668515,93834.0,93822.0,0.0906]
[1767669380221,0.01668515,93834.0,93821.0,0.0906]
[1767669380423,0.01668515,93834.0,93821.0,0.0856]
[1767669383131,0.09911686,93835.0,93821.0,0.0856]
[1767669384929,0.09911686,93835.0,93822.0,0.010658]
[1767669385233,0.09911686,93835.0,93824.0,0.010658]
[1767669387130,0.09911686,93843.0,93824.0,0.010658]
[1767669387434,0.01668515,93839.0,93821.0,0.13434952]
[1767669387633,0.01668515,93838.0,93822.0,0.03809052]
[1767669388026,0.01668515,93838.0,93822.0,0.01809052]
[1767669389126,0.11580201,93838.0,93822.0,0.01809052]
[1767669389335,0.01668515,93837.0,93822.0,0.01809052]
[1767669389731,0.09911686,93838.0,93822.0,0.01809052]
[1767669389937,0.01668515,93843.0,93828.0,0.010658]
[1767669390438,0.01668515,93842.0,93828.0,0.010658]
[1767669392937,0.01634696,93854.0,93827.0,0.09140783]
[1767669393132,0.0906,93854.0,93839.0,0.010657]
[1767669393540,0.0906,93854.0,93831.0,0.0906]
[1767669393541,0.01634696,93858.0,93843.0,0.010656]
[1767669394536,0.01634696,93858.0,93837.0,0.09140783]
[1767669394537,0.01634696,93858.0,93840.0,0.010656]
[1767669394838,0.1129145,93858.0,93840.0,0.010656]
[1767669395044,0.01634696,93857.0,93840.0,0.010656]
[1767669395947,0.01634696,93857.0,93837.0,0.09106383]
[1767669396149,0.01634696,93857.0,93840.0,0.010656]
[1767669396350,0.01634696,93856.0,93837.0,0.10172083]
[1767669396550,0.01634696,93856.0,93845.0,0.010656]
[1767669396750,0.01634696,93856.0,93840.0,0.09817367]
[1767669398451,0.01634696,93856.0,93841.0,0.010656]
[1767669400253,0.01634696,93855.0,93841.0,0.010656]
[1767669400845,0.09656754,93856.0,93841.0,0.010656]
[1767669401350,0.09656754,93862.0,93846.0,0.10882967]
[1767669401546,0.09656754,93862.0,93850.0,0.09817367]
[1767669401844,0.1129145,93862.0,93850.0,0.09817367]
[1767669402048,0.09656754,93869.0,93850.0,0.09817367]
[1767669402255,0.01634696,93872.0,93860.0,0.09817367]
[1767669402453,0.09656754,93874.0,93860.0,0.09817367]
[1767669403559,0.09656754,93881.0,93860.0,0.09817367]
[1767669403852,0.09656754,93879.0,93860.0,0.09817367]
[1767669404454,0.09656754,93875.0,93860.0,0.09817367]
[1767669404661,0.01634696,93874.0,93860.0,0.09817367]
[1767669405162,0.01634696,93873.0,93860.0,0.09817367]
[1767669406559,0.09656754,93874.0,93863.0,0.09817367]
[1767669406763,0.09656754,93874.0,93860.0,0.09817367]
[1767669408064,0.05,93882.0,93864.0,0.10882767]
[1767669408259,0.0906,93881.0,93870.0,0.09817367]
[1767669409161,0.0906,93881.0,93863.0,0.010654]
[1767669409368,0.2035145,93881.0,93863.0,0.010654]
[1767669410069,0.1129145,93877.0,93860.0,0.010654]
[1767669410271,0.01634696,93873.0,93860.0,0.09817367]
[1767669410660,0.01634696,93872.0,93860.0,0.09817367]
[1767669410866,0.01634696,93870.0,93860.0,0.09817367]
[1767669411366,0.01634696,93870.0,93860.0,0.08917367]
[1767669411566,0.09656754,93871.0,93860.0,0.08917367]
[1767669411768,0.1129145,93876.0,93861.0,0.010654]
[1767669414373,0.01634696,93875.0,93861.0,0.010654]
[1767669414574,0.01650075,93874.0,93860.0,0.08917367]
[1767669414775,0.10668168,93873.0,93860.0,0.08917367]
[1767669417376,0.10668168,93873.0,93861.0,0.010654]
[1767669418374,0.10668168,93873.0,93863.0,0.010654]
[1767669418978,0.10668168,93873.0,93860.0,0.08917367]
[1767669419177,0.10668168,93873.0,93863.0,0.010654]
[1767669419376,0.01650075,93878.0,93865.0,0.010654]
[1767669419579,0.01650075,93877.0,93865.0,0.010654]
[1767669419777,0.10668168,93877.0,93865.0,0.010654]
[1767669420078,0.01650075,93876.0,93865.0,0.010654]
[1767669421282,0.11007733,93874.0,93865.0,0.010654]
[1767669421482,0.01713305,93873.0,93865.0,0.010654]
[1767669421882,0.01713305,93877.0,93867.0,0.010653]
[1767669422377,0.01713305,93876.0,93867.0,0.010653]
[1767669422577,0.01713305,93875.0,93867.0,0.010653]
[1767669423679,0.0906,93881.0,93865.0,0.09817367]
[1767669423875,0.0906,93881.0,93870.0,0.10882667]
[1767669424280,0.05,93882.0,93870.0,0.10882667]
[1767669424483,0.06713305,93882.0,93870.0,0.09817367]
[1767669424879,0.01713305,93881.0,93870.0,0.09817367]
[1767669425179,0.01065,93895.0,93871.0,0.010653]
[1767669425387,0.10125,93894.0,93880.0,0.09817367]
[1767669425578,0.10125,93894.0,93870.0,0.10882667]
[1767669425977,0.11206993,93894.0,93870.0,0.10882667]
[1767669426784,0.11206993,93894.0,93870.0,0.09817367]
[1767669427286,0.01713305,93892.0,93870.0,0.10882667]
[1767669427482,0.01713305,93888.0,93870.0,0.10882667]
[1767669427683,0.01713305,93888.0,93872.0,0.010653]
[1767669428483,0.01713305,93887.0,93870.0,0.09817367]
[1767669429588,0.01713305,93887.0,93871.0,0.010653]
[1767669430382,0.09294428,93893.0,93875.0,0.010652]
[1767669430586,0.01713305,93892.0,93875.0,0.010652]
[1767669430990,0.01713305,93891.0,93872.0,0.010653]
[1767669431294,0.01713305,93884.0,93870.0,0.09817367]
[1767669431987,0.01713305,93884.0,93871.0,0.010653]
[1767669433093,0.01713305,93884.0,93870.0,0.09817367]
[1767669433884,0.01713305,93884.0,93870.0,0.10882667]
[1767669434089,0.01713305,93884.0,93870.0,0.010653]
[1767669434290,0.01713305,93884.0,93870.0,0.10882667]
[1767669434492,0.01713305,93884.0,93865.0,0.0074576]
[1767669434493,0.01713305,93884.0,93863.0,0.03812352]
[1767669434792,0.01713305,93884.0,93870.0,0.09817367]